[Event "Late-Titled-Tuesday-Blitz-January-23-2024"]
[Site "Chess.com"]
[Date "2024.01.23"]
[Round "2"]
[White "Vladimir_Zakhartsov"]
[Black "CarrotsandPizza"]
[Result "1-0"]
[WhiteElo "2854"]
[BlackElo "2554"]
[TimeControl "180+1"]
[EndTime "14:18:24 PST"]
[Termination "Vladimir_Zakhartsov won by resignation"]

1. e4 {[%clk 0:02:58.3]} 1... c5 {[%clk 0:02:59.5]} 2. Nf3 {[%clk 0:02:58]} 2...
Qb6 {[%clk 0:02:59.1]} 3. d4 {[%clk 0:02:52.5]} 3... cxd4 {[%clk 0:02:58.6]} 4.
Nxd4 {[%clk 0:02:53.2]} 4... Nf6 {[%clk 0:02:58.5]} 5. Nc3 {[%clk 0:02:52.3]}
5... e5 {[%clk 0:02:58.3]} 6. Nb3 {[%clk 0:02:36.7]} 6... Bb4 {[%clk 0:02:57.6]}
7. Bd3 {[%clk 0:02:29.6]} 7... d5 {[%clk 0:02:56.9]} 8. exd5 {[%clk 0:02:23.1]}
8... Nxd5 {[%clk 0:02:56.8]} 9. Bd2 {[%clk 0:02:21.6]} 9... Nxc3 {[%clk
0:02:56.9]} 10. bxc3 {[%clk 0:02:20.8]} 10... Bd6 {[%clk 0:02:57.2]} 11. O-O
{[%clk 0:02:17.7]} 11... O-O {[%clk 0:02:57]} 12. Rb1 {[%clk 0:02:11.9]} 12...
Qc7 {[%clk 0:02:56]} 13. Qe2 {[%clk 0:02:10.1]} 13... Be6 {[%clk 0:02:54.6]} 14.
c4 {[%clk 0:02:10.2]} 14... Nd7 {[%clk 0:02:54.2]} 15. Rfe1 {[%clk 0:02:06.6]}
15... Rac8 {[%clk 0:02:51]} 16. c5 {[%clk 0:01:46.3]} 16... Be7 {[%clk
0:02:49.8]} 17. Bc3 {[%clk 0:01:38.8]} 17... Rfd8 {[%clk 0:02:47.9]} 18. Bxe5
{[%clk 0:01:23.5]} 18... Nxe5 {[%clk 0:02:47.1]} 19. Qxe5 {[%clk 0:01:24.4]}
19... Qxe5 {[%clk 0:02:25.4]} 20. Rxe5 {[%clk 0:01:25.3]} 20... Bf6 {[%clk
0:02:23.2]} 21. Ree1 {[%clk 0:01:19.8]} 21... Rd7 {[%clk 0:02:23.5]} 22. a4
{[%clk 0:01:15]} 22... g6 {[%clk 0:02:21.5]} 23. Be4 {[%clk 0:01:07.3]} 23...
Bd5 {[%clk 0:01:46.8]} 24. Rbd1 {[%clk 0:01:01.2]} 24... Rcd8 {[%clk 0:01:46.7]}
25. Bxd5 {[%clk 0:00:59.2]} 25... Rxd5 {[%clk 0:01:46.8]} 26. Rxd5 {[%clk
0:00:59.7]} 26... Rxd5 {[%clk 0:01:46.9]} 27. Re8+ {[%clk 0:00:57.5]} 27... Kg7
{[%clk 0:01:46.5]} 28. g3 {[%clk 0:00:57.9]} 28... Rd7 {[%clk 0:01:39]} 29. Rc8
{[%clk 0:00:55.7]} 29... h5 {[%clk 0:01:28]} 30. h4 {[%clk 0:00:55.6]} 30... Be5
{[%clk 0:01:04.5]} 31. c6 {[%clk 0:00:48.7]} 31... bxc6 {[%clk 0:01:05.4]} 32.
Rxc6 {[%clk 0:00:49.2]} 32... Bc7 {[%clk 0:00:59.7]} 33. Kg2 {[%clk 0:00:48]}
33... Bb6 {[%clk 0:00:59.7]} 34. a5 {[%clk 0:00:47.7]} 34... Bd8 {[%clk
0:00:59.8]} 35. a6 {[%clk 0:00:40.8]} 35... Bb6 {[%clk 0:00:58.5]} 36. Kf3
{[%clk 0:00:28.4]} 36... Re7 {[%clk 0:00:57.9]} 37. c4 {[%clk 0:00:26.6]} 37...
Rd7 {[%clk 0:00:55.5]} 38. c5 {[%clk 0:00:20.9]} 38... Rd3+ {[%clk 0:00:41.1]}
39. Ke4 {[%clk 0:00:21.4]} 39... Rxb3 {[%clk 0:00:41.1]} 40. cxb6 {[%clk
0:00:22]} 40... axb6 {[%clk 0:00:41.5]} 41. Kd5 {[%clk 0:00:22.4]} 41... Rb2
{[%clk 0:00:29.1]} 42. a7 {[%clk 0:00:22]} 42... Ra2 {[%clk 0:00:28.5]} 43. Rc7
{[%clk 0:00:22.7]} 43... Kf6 {[%clk 0:00:13.4]} 44. Kc6 {[%clk 0:00:22]} 44...
Ke6 {[%clk 0:00:11.6]} 45. Kb7 {[%clk 0:00:18.3]} 45... f6 {[%clk 0:00:12.5]}
46. Rc6+ {[%clk 0:00:17.3]} 46... Ke5 {[%clk 0:00:12]} 47. Rxb6 {[%clk
0:00:17.9]} 47... g5 {[%clk 0:00:07]} 48. Ra6 {[%clk 0:00:14.8]} 48... Rb2+
{[%clk 0:00:07.5]} 49. Kc7 {[%clk 0:00:15.3]} 49... Rc2+ {[%clk 0:00:08]} 50.
Kd7 {[%clk 0:00:15.8]} 50... Rc8 {[%clk 0:00:07.9]} 51. Kxc8 {[%clk 0:00:15.9]}
51... gxh4 {[%clk 0:00:08.4]} 52. gxh4 {[%clk 0:00:16]} 52... Kf5 {[%clk
0:00:09.2]} 53. Ra4 {[%clk 0:00:15.9]} 53... Ke5 {[%clk 0:00:08.5]} 54. Ra5+
{[%clk 0:00:15.6]} 54... Kf4 {[%clk 0:00:07.2]} 55. Rxh5 {[%clk 0:00:16.5]}
55... Kg4 {[%clk 0:00:07.4]} 56. Rh6 {[%clk 0:00:16.1]} 56... f5 {[%clk
0:00:08.3]} 57. Rf6 {[%clk 0:00:16]} 57... Kxh4 {[%clk 0:00:07.7]} 58. Rxf5
{[%clk 0:00:16.2]} 58... Kg4 {[%clk 0:00:07.6]} 59. Rf8 {[%clk 0:00:17]} 1-0

[Event "Late-Titled-Tuesday-Blitz-January-23-2024"]
[Site "Chess.com"]
[Date "2024.01.23"]
[Round "2"]
[White "Hirna2005"]
[Black "Arifarsky"]
[Result "0-1"]
[WhiteElo "2278"]
[BlackElo "2711"]
[TimeControl "180+1"]
[EndTime "14:18:24 PST"]
[Termination "Arifarsky won on time"]

1. e4 {[%clk 0:03:00.9]} 1... c5 {[%clk 0:02:58.6]} 2. c3 {[%clk 0:03:00.6]}
2... Nf6 {[%clk 0:02:47.6]} 3. e5 {[%clk 0:03:00.4]} 3... Nd5 {[%clk 0:02:47]}
4. Nf3 {[%clk 0:03:00.9]} 4... d6 {[%clk 0:02:43.5]} 5. Bc4 {[%clk 0:03:00.2]}
5... e6 {[%clk 0:02:41.3]} 6. d4 {[%clk 0:02:59.4]} 6... cxd4 {[%clk 0:02:18.3]}
7. cxd4 {[%clk 0:02:59.1]} 7... Nc6 {[%clk 0:02:17.5]} 8. O-O {[%clk 0:02:57.7]}
8... Be7 {[%clk 0:02:11.3]} 9. Bd2 {[%clk 0:02:56.2]} 9... O-O {[%clk
0:02:06.5]} 10. Nc3 {[%clk 0:02:55.8]} 10... Nb6 {[%clk 0:01:47.3]} 11. Bb3
{[%clk 0:02:53.5]} 11... dxe5 {[%clk 0:01:44.4]} 12. dxe5 {[%clk 0:02:52.9]}
12... Na5 {[%clk 0:01:41.1]} 13. Bc2 {[%clk 0:02:49.8]} 13... Nac4 {[%clk
0:01:39.7]} 14. Qe2 {[%clk 0:02:32]} 14... Nxd2 {[%clk 0:01:21]} 15. Nxd2 {[%clk
0:02:31]} 15... Bd7 {[%clk 0:01:16]} 16. Rad1 {[%clk 0:02:26.8]} 16... Qc7
{[%clk 0:01:11.6]} 17. Nf3 {[%clk 0:02:09.3]} 17... Rfd8 {[%clk 0:01:00.8]} 18.
Qe4 {[%clk 0:01:58.1]} 18... g6 {[%clk 0:00:59.4]} 19. Qf4 {[%clk 0:01:57.8]}
19... Be8 {[%clk 0:00:54.1]} 20. Bb1 {[%clk 0:01:44.9]} 20... Rxd1 {[%clk
0:00:50.2]} 21. Rxd1 {[%clk 0:01:44.2]} 21... Rd8 {[%clk 0:00:51.1]} 22. Rc1
{[%clk 0:01:43.8]} 22... Qd7 {[%clk 0:00:41.4]} 23. h4 {[%clk 0:01:42.3]} 23...
Bf8 {[%clk 0:00:29.1]} 24. h5 {[%clk 0:01:40]} 24... Bg7 {[%clk 0:00:29.3]} 25.
Ne4 {[%clk 0:01:31.2]} 25... Nd5 {[%clk 0:00:28.4]} 26. Qg3 {[%clk 0:01:22.2]}
26... Qe7 {[%clk 0:00:26.5]} 27. hxg6 {[%clk 0:01:10]} 27... hxg6 {[%clk
0:00:27.4]} 28. Neg5 {[%clk 0:01:03.5]} 28... Bh6 {[%clk 0:00:20.5]} 29. Qh4
{[%clk 0:00:58.5]} 29... Kg7 {[%clk 0:00:20.1]} 30. g3 {[%clk 0:00:49.8]} 30...
Bc6 {[%clk 0:00:19.9]} 31. Be4 {[%clk 0:00:47]} 31... Rh8 {[%clk 0:00:18.9]} 32.
Qg4 {[%clk 0:00:34]} 32... Bxg5 {[%clk 0:00:14.5]} 33. Nxg5 {[%clk 0:00:31.8]}
33... Rh5 {[%clk 0:00:14.9]} 34. Nf3 {[%clk 0:00:23.8]} 34... Rh6 {[%clk
0:00:11.9]} 35. a3 {[%clk 0:00:21.7]} 35... a5 {[%clk 0:00:11.6]} 36. Rd1 {[%clk
0:00:20.9]} 36... Qc5 {[%clk 0:00:11]} 37. Nd4 {[%clk 0:00:16.8]} 37... Qe7
{[%clk 0:00:07.1]} 38. Nxc6 {[%clk 0:00:15.9]} 38... bxc6 {[%clk 0:00:07.9]} 39.
Bxd5 {[%clk 0:00:14.4]} 39... exd5 {[%clk 0:00:07.4]} 40. f4 {[%clk 0:00:13.7]}
40... Rh5 {[%clk 0:00:06.2]} 41. Rc1 {[%clk 0:00:12.9]} 41... Qa7+ {[%clk
0:00:06.1]} 42. Kg2 {[%clk 0:00:12.3]} 42... Qb6 {[%clk 0:00:06.6]} 43. Rc2
{[%clk 0:00:11.2]} 43... Qb3 {[%clk 0:00:06.8]} 44. Qe2 {[%clk 0:00:10.2]} 44...
d4 {[%clk 0:00:04.6]} 45. Qd2 {[%clk 0:00:06.2]} 45... Qd5+ {[%clk 0:00:04.6]}
46. Kf2 {[%clk 0:00:03.9]} 46... Rh2+ {[%clk 0:00:05.1]} 47. Ke1 {[%clk
0:00:03.9]} 47... Qe4+ {[%clk 0:00:05.3]} 48. Kd1 {[%clk 0:00:02.8]} 48... Rh1+
{[%clk 0:00:04.7]} 0-1

[Event "Late-Titled-Tuesday-Blitz-January-23-2024"]
[Site "Chess.com"]
[Date "2024.01.23"]
[Round "2"]
[White "K_A_S_T_O_R"]
[Black "maximnovik"]
[Result "1-0"]
[WhiteElo "2891"]
[BlackElo "2576"]
[TimeControl "180+1"]
[EndTime "14:18:27 PST"]
[Termination "K_A_S_T_O_R won on time"]

1. e4 {[%clk 0:03:00.9]} 1... c6 {[%clk 0:02:59.6]} 2. d4 {[%clk 0:02:59.4]}
2... d5 {[%clk 0:03:00.5]} 3. exd5 {[%clk 0:03:00]} 3... cxd5 {[%clk 0:03:00.8]}
4. c4 {[%clk 0:03:00.7]} 4... Nf6 {[%clk 0:03:00.7]} 5. Nc3 {[%clk 0:03:01.2]}
5... g6 {[%clk 0:03:01.3]} 6. cxd5 {[%clk 0:03:00.2]} 6... Nxd5 {[%clk
0:03:00.6]} 7. Qb3 {[%clk 0:02:49.2]} 7... Nxc3 {[%clk 0:03:00.3]} 8. bxc3
{[%clk 0:02:44.7]} 8... Bg7 {[%clk 0:02:59.6]} 9. Nf3 {[%clk 0:02:35.8]} 9...
O-O {[%clk 0:02:59.5]} 10. Be2 {[%clk 0:02:35.6]} 10... Nc6 {[%clk 0:02:59.5]}
11. O-O {[%clk 0:02:36]} 11... b6 {[%clk 0:02:57.1]} 12. Bg5 {[%clk 0:02:34.1]}
12... h6 {[%clk 0:02:54.5]} 13. Bh4 {[%clk 0:02:31.4]} 13... Bb7 {[%clk
0:02:54.7]} 14. Rac1 {[%clk 0:02:29.7]} 14... Rc8 {[%clk 0:02:52.6]} 15. Rfd1
{[%clk 0:02:29.6]} 15... Qd7 {[%clk 0:02:25.7]} 16. Qa3 {[%clk 0:02:24.9]} 16...
e6 {[%clk 0:02:20.5]} 17. Bg3 {[%clk 0:02:12.4]} 17... Rfd8 {[%clk 0:02:08.7]}
18. Qb2 {[%clk 0:02:08.5]} 18... Qe8 {[%clk 0:01:15.4]} 19. Bd3 {[%clk
0:01:58.4]} 19... Ne7 {[%clk 0:01:13.6]} 20. Qe2 {[%clk 0:01:53.2]} 20... Nf5
{[%clk 0:01:09.9]} 21. Bf4 {[%clk 0:01:48.2]} 21... Qe7 {[%clk 0:01:04.4]} 22.
Bxf5 {[%clk 0:01:42.3]} 22... gxf5 {[%clk 0:01:03.9]} 23. Ne5 {[%clk 0:01:39.5]}
23... Bxe5 {[%clk 0:00:48.5]} 24. Qxe5 {[%clk 0:01:35.4]} 24... Kh7 {[%clk
0:00:46.2]} 25. Re1 {[%clk 0:01:26]} 25... Rg8 {[%clk 0:00:39]} 26. Qxf5+ {[%clk
0:01:15]} 26... exf5 {[%clk 0:00:31]} 27. Rxe7 {[%clk 0:01:15.3]} 27... Bxg2
{[%clk 0:00:25.3]} 28. Rxf7+ {[%clk 0:01:03.9]} 28... Kg6 {[%clk 0:00:25.4]} 29.
Re7 {[%clk 0:00:58.1]} 29... Kh5 {[%clk 0:00:25]} 30. Bg3 {[%clk 0:00:55.9]}
30... Ba8 {[%clk 0:00:22.2]} 31. Kf1 {[%clk 0:00:53.4]} 31... Bd5 {[%clk
0:00:20.4]} 32. Re5 {[%clk 0:00:49.6]} 32... Bc4+ {[%clk 0:00:20.4]} 33. Ke1
{[%clk 0:00:50.1]} 33... Rce8 {[%clk 0:00:20.3]} 34. Kd2 {[%clk 0:00:49.2]}
34... Rxe5 {[%clk 0:00:20.2]} 35. Bxe5 {[%clk 0:00:46.7]} 35... Rd8 {[%clk
0:00:17.1]} 36. a3 {[%clk 0:00:44]} 36... Kg4 {[%clk 0:00:14.9]} 37. Ke3 {[%clk
0:00:42]} 37... Rg8 {[%clk 0:00:11.1]} 38. f3+ {[%clk 0:00:32.1]} 38... Kh5
{[%clk 0:00:10.4]} 39. Bg3 {[%clk 0:00:31.9]} 39... Kg6 {[%clk 0:00:09.8]} 40.
Kf4 {[%clk 0:00:31.5]} 40... Re8 {[%clk 0:00:09.3]} 41. Rg1 {[%clk 0:00:30.4]}
41... Re2 {[%clk 0:00:06.2]} 42. Bh4+ {[%clk 0:00:28.2]} 42... Kf7 {[%clk
0:00:06.3]} 43. Kxf5 {[%clk 0:00:26.5]} 43... Be6+ {[%clk 0:00:06.2]} 44. Kf4
{[%clk 0:00:26.4]} 44... Rxh2 {[%clk 0:00:06.5]} 45. Bg3 {[%clk 0:00:25.5]}
45... Rc2 {[%clk 0:00:05.8]} 46. Rh1 {[%clk 0:00:19.8]} 46... Rxc3 {[%clk
0:00:04.9]} 47. Rxh6 {[%clk 0:00:20.4]} 47... Rxa3 {[%clk 0:00:05.1]} 48. Ke5
{[%clk 0:00:19.1]} 48... Bc4 {[%clk 0:00:03.6]} 49. Rf6+ {[%clk 0:00:17]} 49...
Kg7 {[%clk 0:00:03.7]} 50. Bf4 {[%clk 0:00:17.4]} 1-0

[Event "Late-Titled-Tuesday-Blitz-January-23-2024"]
[Site "Chess.com"]
[Date "2024.01.23"]
[Round "2"]
[White "brunoo2003"]
[Black "messiboca"]
[Result "0-1"]
[WhiteElo "2520"]
[BlackElo "2771"]
[TimeControl "180+1"]
[EndTime "14:18:27 PST"]
[Termination "messiboca won by resignation"]

1. e4 {[%clk 0:02:47.6]} 1... e5 {[%clk 0:02:56.2]} 2. Nf3 {[%clk 0:02:47.9]}
2... Nc6 {[%clk 0:02:56.6]} 3. Bb5 {[%clk 0:02:48.1]} 3... Bc5 {[%clk
0:02:56.9]} 4. O-O {[%clk 0:02:48.3]} 4... Nge7 {[%clk 0:02:56.4]} 5. c3 {[%clk
0:02:48.8]} 5... Bb6 {[%clk 0:02:56.6]} 6. d4 {[%clk 0:02:48.7]} 6... exd4
{[%clk 0:02:57.5]} 7. cxd4 {[%clk 0:02:49.4]} 7... d5 {[%clk 0:02:58]} 8. e5
{[%clk 0:02:49.7]} 8... Bg4 {[%clk 0:02:54.8]} 9. Be3 {[%clk 0:02:45.2]} 9...
O-O {[%clk 0:02:54.7]} 10. h3 {[%clk 0:02:34.9]} 10... Bxf3 {[%clk 0:02:54.5]}
11. gxf3 {[%clk 0:02:35.8]} 11... Nf5 {[%clk 0:02:54.7]} 12. Bxc6 {[%clk
0:02:33.4]} 12... bxc6 {[%clk 0:02:55.6]} 13. Qd3 {[%clk 0:02:16.1]} 13... g6
{[%clk 0:02:38.8]} 14. Kh2 {[%clk 0:02:11]} 14... Qh4 {[%clk 0:02:36.2]} 15. Rg1
{[%clk 0:02:10.3]} 15... Bxd4 {[%clk 0:02:33]} 16. Rg4 {[%clk 0:02:06.5]} 16...
Bxe5+ {[%clk 0:02:00.2]} 17. f4 {[%clk 0:02:06.7]} 17... Qf6 {[%clk 0:01:28.5]}
18. fxe5 {[%clk 0:02:06.5]} 18... Qxe5+ {[%clk 0:01:27.8]} 19. Bf4 {[%clk
0:02:03.6]} 19... Qxb2 {[%clk 0:01:27.9]} 20. Qxf5 {[%clk 0:02:00.3]} 20...
Qxf2+ {[%clk 0:01:27.9]} 21. Rg2 {[%clk 0:01:59.7]} 21... Qxg2+ {[%clk
0:01:27.7]} 22. Kxg2 {[%clk 0:02:00.6]} 22... gxf5 {[%clk 0:01:28.3]} 23. Nd2
{[%clk 0:01:58.6]} 23... Rfe8 {[%clk 0:01:27.1]} 24. Kf3 {[%clk 0:01:57.1]}
24... f6 {[%clk 0:01:22.7]} 25. Rc1 {[%clk 0:01:54.1]} 25... Re6 {[%clk
0:01:20.6]} 26. Nb3 {[%clk 0:01:54.2]} 26... Rae8 {[%clk 0:01:03.7]} 27. Nd4
{[%clk 0:01:52.3]} 27... Re4 {[%clk 0:01:03.9]} 28. Nxf5 {[%clk 0:01:47.3]}
28... Re1 {[%clk 0:00:39.9]} 29. Rxc6 {[%clk 0:01:02.2]} 29... Rf1+ {[%clk
0:00:39.3]} 30. Kg3 {[%clk 0:01:02.1]} 30... Re4 {[%clk 0:00:39.3]} 31. Nh6+
{[%clk 0:00:57.4]} 31... Kg7 {[%clk 0:00:37.5]} 32. Rxc7+ {[%clk 0:00:44]} 32...
Kg6 {[%clk 0:00:36.6]} 33. Bd2 {[%clk 0:00:21.2]} 33... Rd1 {[%clk 0:00:36.8]}
34. Bc1 {[%clk 0:00:11.6]} 34... Rd3+ {[%clk 0:00:32.3]} 35. Kf2 {[%clk
0:00:09.7]} 35... Rc4 {[%clk 0:00:26]} 36. Rxc4 {[%clk 0:00:09.2]} 36... dxc4
{[%clk 0:00:26.9]} 37. Ng4 {[%clk 0:00:08.7]} 37... Rc3 {[%clk 0:00:25.8]} 38.
Be3 {[%clk 0:00:06]} 38... Rc2+ {[%clk 0:00:26.2]} 39. Kf3 {[%clk 0:00:06.3]}
39... Rxa2 {[%clk 0:00:26.6]} 40. Nf2 {[%clk 0:00:06.8]} 40... c3 {[%clk
0:00:26.2]} 41. Ne4 {[%clk 0:00:06.1]} 41... c2 {[%clk 0:00:24.3]} 42. Nc3
{[%clk 0:00:05.4]} 42... Ra3 {[%clk 0:00:23.8]} 43. Ne2 {[%clk 0:00:06]} 43...
a5 {[%clk 0:00:22.7]} 44. Ke4 {[%clk 0:00:05.8]} 44... a4 {[%clk 0:00:22.6]} 45.
h4 {[%clk 0:00:06.1]} 45... Rxe3+ {[%clk 0:00:19.8]} 46. Kxe3 {[%clk 0:00:05.6]}
46... a3 {[%clk 0:00:20.7]} 47. Nc1 {[%clk 0:00:03.7]} 47... Kh5 {[%clk
0:00:21.1]} 48. Kd2 {[%clk 0:00:04.2]} 48... Kxh4 {[%clk 0:00:21.7]} 49. Kxc2
{[%clk 0:00:04.9]} 49... Kg3 {[%clk 0:00:21.9]} 50. Kb3 {[%clk 0:00:04.6]} 50...
h5 {[%clk 0:00:22.6]} 51. Kxa3 {[%clk 0:00:04.5]} 51... h4 {[%clk 0:00:23.2]}
52. Ne2+ {[%clk 0:00:04.2]} 52... Kf3 {[%clk 0:00:23.6]} 53. Ng1+ {[%clk
0:00:04]} 53... Kg2 {[%clk 0:00:24.1]} 54. Ne2 {[%clk 0:00:04.6]} 54... f5
{[%clk 0:00:24.6]} 55. Kb3 {[%clk 0:00:04.4]} 55... Kf2 {[%clk 0:00:25]} 56. Nf4
{[%clk 0:00:04]} 56... Kf3 {[%clk 0:00:24.6]} 57. Nh3 {[%clk 0:00:03.9]} 57...
Kg3 {[%clk 0:00:25.2]} 58. Ng5 {[%clk 0:00:04.3]} 58... f4 {[%clk 0:00:25.6]}
59. Kc3 {[%clk 0:00:04.1]} 59... f3 {[%clk 0:00:25.9]} 60. Kd2 {[%clk
0:00:04.7]} 60... f2 {[%clk 0:00:25.6]} 61. Ke2 {[%clk 0:00:04.2]} 61... Kg2
{[%clk 0:00:25.9]} 0-1

[Event "Late-Titled-Tuesday-Blitz-January-23-2024"]
[Site "Chess.com"]
[Date "2024.01.23"]
[Round "2"]
[White "ritanovikova"]
[Black "Zq1"]
[Result "0-1"]
[WhiteElo "2168"]
[BlackElo "2471"]
[TimeControl "180+1"]
[EndTime "14:18:30 PST"]
[Termination "Zq1 won on time"]

1. e4 {[%clk 0:02:58.3]} 1... c5 {[%clk 0:02:59.8]} 2. Nc3 {[%clk 0:02:58.3]}
2... g6 {[%clk 0:02:58.9]} 3. d3 {[%clk 0:02:59.2]} 3... Bg7 {[%clk 0:02:58.4]}
4. Be3 {[%clk 0:02:59.8]} 4... d6 {[%clk 0:02:57.4]} 5. Qd2 {[%clk 0:03:00]}
5... Nc6 {[%clk 0:02:56.9]} 6. g3 {[%clk 0:02:58.7]} 6... b5 {[%clk 0:02:55.9]}
7. Bg2 {[%clk 0:02:58.3]} 7... b4 {[%clk 0:02:54.7]} 8. Nd1 {[%clk 0:02:58.6]}
8... Rb8 {[%clk 0:02:50.5]} 9. h4 {[%clk 0:02:57.9]} 9... h5 {[%clk 0:02:49.5]}
10. Nh3 {[%clk 0:02:57.3]} 10... Nf6 {[%clk 0:02:46.6]} 11. f3 {[%clk
0:02:56.4]} 11... a5 {[%clk 0:02:39.5]} 12. O-O {[%clk 0:02:56]} 12... Bd7
{[%clk 0:02:35.5]} 13. Nhf2 {[%clk 0:02:53.9]} 13... Ne5 {[%clk 0:02:33.3]} 14.
c3 {[%clk 0:02:51.4]} 14... O-O {[%clk 0:02:31]} 15. Bh6 {[%clk 0:02:20.5]}
15... a4 {[%clk 0:02:30.5]} 16. Bxg7 {[%clk 0:02:20.3]} 16... Kxg7 {[%clk
0:02:30.7]} 17. Ne3 {[%clk 0:02:11.8]} 17... a3 {[%clk 0:02:29.8]} 18. bxa3
{[%clk 0:02:08.6]} 18... bxc3 {[%clk 0:02:23.7]} 19. Qxc3 {[%clk 0:02:07.1]}
19... Ra8 {[%clk 0:02:21.7]} 20. f4 {[%clk 0:02:03.4]} 20... Neg4 {[%clk
0:02:14.8]} 21. Nexg4 {[%clk 0:02:03.1]} 21... Bxg4 {[%clk 0:02:07]} 22. Nxg4
{[%clk 0:02:02.9]} 22... hxg4 {[%clk 0:02:06.2]} 23. e5 {[%clk 0:02:02.5]} 23...
dxe5 {[%clk 0:02:01.3]} 24. Bxa8 {[%clk 0:01:54.8]} 24... Qxa8 {[%clk 0:01:58]}
25. fxe5 {[%clk 0:01:45.1]} 25... Nd5 {[%clk 0:01:57.5]} 26. Qxc5 {[%clk
0:01:42.5]} 26... e6 {[%clk 0:01:50.2]} 27. Rf2 {[%clk 0:01:37.6]} 27... Qb7
{[%clk 0:01:44.9]} 28. Raf1 {[%clk 0:01:35.8]} 28... Ne7 {[%clk 0:01:44.9]} 29.
a4 {[%clk 0:01:29.1]} 29... Nf5 {[%clk 0:01:44.7]} 30. Kh2 {[%clk 0:01:26.4]}
30... Rd8 {[%clk 0:01:40.4]} 31. a5 {[%clk 0:01:26]} 31... Rxd3 {[%clk
0:01:37.3]} 32. Qb6 {[%clk 0:01:24.4]} 32... Qa8 {[%clk 0:01:34.6]} 33. Rg2
{[%clk 0:01:04.9]} 33... Ne3 {[%clk 0:01:27.9]} 34. Rff2 {[%clk 0:00:50.4]}
34... Nxg2 {[%clk 0:01:27.4]} 35. Rxg2 {[%clk 0:00:51.3]} 35... Ra3 {[%clk
0:01:21.3]} 36. Qf2 {[%clk 0:00:47.2]} 36... Qf3 {[%clk 0:01:13.2]} 37. Qxf3
{[%clk 0:00:40.5]} 37... gxf3 {[%clk 0:01:12.5]} 38. Rf2 {[%clk 0:00:41.1]}
38... Rxa5 {[%clk 0:01:10.3]} 39. Kh3 {[%clk 0:00:39.3]} 39... Rxe5 {[%clk
0:01:01.1]} 40. Rxf3 {[%clk 0:00:38.6]} 40... Ra5 {[%clk 0:00:56.4]} 41. Rf2
{[%clk 0:00:38]} 41... f5 {[%clk 0:00:55.9]} 42. Re2 {[%clk 0:00:36.5]} 42...
Kf6 {[%clk 0:00:55.7]} 43. Kg2 {[%clk 0:00:35.5]} 43... Ra3 {[%clk 0:00:54.7]}
44. Rb2 {[%clk 0:00:34.8]} 44... Ra4 {[%clk 0:00:52.3]} 45. Kf3 {[%clk
0:00:33.2]} 45... Ra6 {[%clk 0:00:51.5]} 46. Rc2 {[%clk 0:00:29.5]} 46... e5
{[%clk 0:00:51.1]} 47. Ke3 {[%clk 0:00:27.9]} 47... Ra3+ {[%clk 0:00:48.3]} 48.
Kf2 {[%clk 0:00:28]} 48... Kg7 {[%clk 0:00:45.9]} 49. Rb2 {[%clk 0:00:27.1]}
49... Kh6 {[%clk 0:00:45.5]} 50. Kg2 {[%clk 0:00:27.1]} 50... Kh5 {[%clk
0:00:43.5]} 51. Kh2 {[%clk 0:00:22.4]} 51... Kg4 {[%clk 0:00:40.4]} 52. Rb4+
{[%clk 0:00:19.7]} 52... e4 {[%clk 0:00:39.6]} 53. Rb2 {[%clk 0:00:17]} 53...
Kf3 {[%clk 0:00:38.2]} 54. Rc2 {[%clk 0:00:07.3]} 54... e3 {[%clk 0:00:37.8]}
55. Kg1 {[%clk 0:00:07.2]} 55... Rd3 {[%clk 0:00:32.2]} 56. Rc1 {[%clk 0:00:06]}
56... e2 {[%clk 0:00:30.8]} 57. Kh2 {[%clk 0:00:05.2]} 57... Kf2 {[%clk
0:00:25.7]} 58. a4 {[%clk 0:00:04.4]} 58... e1=Q {[%clk 0:00:24.1]} 0-1